fUST/lending_fUST_20251103
["ID","MTS","AMOUNT","RATE_DAILY","PERIOD"]
[392887631,1762108232893,-500.0,0.00020968,2]
[392887633,1762108232902,-500.0,0.00020968,2]
[392887635,1762108232911,-500.0,0.00020968,2]
[392887637,1762108232920,-500.0,0.00020968,2]
[392887639,1762108232929,-500.0,0.00020968,2]
[392887641,1762108232939,-500.0,0.00020968,2]
[392887643,1762108232949,-500.0,0.00020968,2]
[392887644,1762108232959,-500.0,0.00020968,2]
[392887645,1762108232968,-204.32677935,0.00020968,2]
[392887646,1762108232977,-500.0,0.00020968,2]
[392887647,1762108232987,-500.0,0.00020968,2]
[392887648,1762108232996,-500.0,0.00020968,2]
[392887649,1762108233005,-500.0,0.00020968,2]
[392887650,1762108233015,-500.0,0.00020968,2]
[392887651,1762108233023,-500.0,0.00020968,2]
[392887652,1762108233032,-650.40467843,0.00020968,2]
[392887653,1762108233041,-500.0,0.00020968,2]
[392887654,1762108233050,-7204.06115665,0.00020969,2]
[392887655,1762108233059,-422.16790606,0.00020973,2]
[392887656,1762108233069,-159.68,0.00020973,2]
[392887657,1762108233077,-500.0,0.00020974,2]
[392887658,1762108233088,-17399.82786429,0.00020976,2]
[392887659,1762108233099,-1152.96700882,0.00020976,2]
[392887679,1762108233374,-49.66936481,0.00020976,2]
[392887681,1762108233385,-17723.84242581,0.00020976,2]
[392887727,1762108238258,-490.48,0.00020966,3]
[392887728,1762108238268,-205.33,0.00020976,2]
[392887729,1762108238313,-4001.70000001,0.00020976,2]
[392887747,1762108240508,-3704.51237733,0.00020976,2]
[392887749,1762108240518,-11003.73490794,0.00020976,2]
[392887783,1762108241031,-0.00955929,0.00020976,2]
[392887784,1762108241042,-12572.28225809,0.00020976,2]
[392887785,1762108241055,-1867.48177189,0.00020976,2]
[392887786,1762108241068,-4139.38108142,0.00020976,2]
[392887803,1762108243551,-322.36312694,0.00020976,2]
[392887804,1762108243565,-866.35794739,0.00020976,2]
[392887815,1762108246656,-606652.48757294,0.00020976,2]
[392887816,1762108246666,-382.69688099,0.0002099,2]
[392887817,1762108246676,-1174.91,0.00021,2]
[392887818,1762108246685,-331.0,0.00021076,2]
[392887819,1762108246695,-331.0,0.00021076,2]
[392887820,1762108246705,-331.0,0.00021076,2]
[392887821,1762108246714,-153.06340405,0.00021128,5]
[392887822,1762108246725,-1174.91,0.000212,2]
[392887823,1762108246734,-680.502229,0.00021224,2]
[392887824,1762108246743,-1174.91,0.000214,2]
[392887825,1762108246752,-4316.10371763,0.00021505,2]
[392887826,1762108246762,-201.93286099,0.00021511,2]
[392887827,1762108246771,-300.0,0.00021598,20]
[392887828,1762108246781,-300.0,0.00021598,20]
[392887829,1762108246790,-300.0,0.00021598,20]
[392887830,1762108246800,-300.0,0.00021598,20]
[392887831,1762108246810,-300.0,0.00021598,20]
[392887832,1762108246820,-300.0,0.00021598,20]
[392887833,1762108246830,-300.0,0.00021598,20]
[392887834,1762108246839,-300.0,0.00021598,20]
[392887835,1762108246848,-300.0,0.00021598,20]
[392887836,1762108246858,-300.0,0.00021598,20]
[392887837,1762108246867,-300.0,0.00021598,20]
[392887838,1762108246877,-300.0,0.00021598,20]
[392887839,1762108246891,-300.0,0.00021598,20]
[392887840,1762108246900,-300.0,0.00021598,20]
[392887841,1762108246909,-300.0,0.00021598,20]
[392887842,1762108246918,-600.0,0.00021598,20]
[392887843,1762108246927,-338.23214991,0.00021634,2]
[392887844,1762108246938,-1174.91,0.000217,2]
[392887845,1762108246947,-150.0,0.00021824,2]
[392887846,1762108246957,-1174.91,0.000219,2]
[392887847,1762108246967,-209.40437684,0.00022059,2]
[392887848,1762108246977,-1174.91,0.000221,2]
[392887850,1762108246986,-549.39906361,0.00022131,2]
[392887851,1762108246996,-2197.59625445,0.00022131,2]
[392887852,1762108247005,-4939.64698095,0.00022131,2]
[392887853,1762108247014,-168.0,0.00022156,2]
[392887854,1762108247024,-627.0,0.00022188,2]
[392887855,1762108247033,-2163.0,0.00022188,2]
[392887856,1762108247043,-985.0,0.00022188,2]
[392887857,1762108247052,-412.0,0.00022188,2]
[392887858,1762108247061,-18715.23,0.000222,7]
[392887859,1762108247070,-404.09107657,0.000222,7]
[392887860,1762108247080,-168.0,0.00022226,2]
[392887861,1762108247090,-229.16,0.000223,14]
[392887862,1762108247100,-2009.76,0.00022336,3]
[392887863,1762108247109,-1004.88,0.00022336,3]
[392887864,1762108247118,-502.44,0.00022336,3]
[392887865,1762108247127,-326.98,0.00022336,3]
[392887866,1762108247136,-168.0,0.00022398,2]
[392887867,1762108247147,-1174.91,0.000224,2]
[392887868,1762108247156,-404.09107657,0.00022436,3]
[392887869,1762108247166,-8092.0,0.00022479,2]
[392887870,1762108247175,-1174.91,0.000226,2]
[392887871,1762108247184,-217.15233878,0.00022607,2]
[392887872,1762108247194,-500.0,0.00022782,2]
[392887873,1762108247205,-1174.91,0.000228,2]
[392887874,1762108247214,-661.0,0.00022806,2]
[392887875,1762108247224,-420.0,0.00022806,2]
[392887876,1762108247234,-160.0,0.00022811,2]
[392887877,1762108247245,-168.0,0.00022825,2]
[392887878,1762108247254,-334.95729809,0.00022854,2]
[392887879,1762108247264,-500.0,0.00022854,2]
[392887880,1762108247275,-500.0,0.00022854,2]
[392887881,1762108247284,-539.2216932,0.00022858,2]
[392887882,1762108247293,-150.0,0.00022863,2]
[392887883,1762108247302,-168.0,0.00022889,2]
[392887884,1762108247312,-837.97199363,0.00022914,2]
[392887885,1762108247321,-1680.0,0.00022914,2]
[392887887,1762108247330,-359.68945159,0.00022966,2]
[392887888,1762108247339,-2156.217856,0.00023,2]
[392887889,1762108247350,-190.422901,0.00023,3]
[392887890,1762108247361,-562.90272572,0.00023003,2]
[392887891,1762108247370,-2251.61090289,0.00023003,2]
[392887892,1762108247379,-5061.05840698,0.00023003,2]
[392887893,1762108247390,-190.422901,0.00023034,2]
[392887894,1762108247401,-168.0,0.00023052,2]
[392887895,1762108247411,-1174.91,0.000231,2]
[392887896,1762108247421,-225.18697532,0.00023155,2]
[392887897,1762108247431,-168.68798898,0.00023247,2]
[392887898,1762108247440,-297.7077847,0.00023296,2]
[392887899,1762108247449,-260.0,0.00023358,2]
[392887900,1762108247459,-168.0,0.00023386,2]
[392887901,1762108247468,-190.422901,0.00023393,10]
[392887902,1762108247480,-500.0,0.00023402,2]
[392887903,1762108247490,-190.422901,0.00023444,7]
[392887904,1762108247500,-168.0,0.0002352,2]
[392887905,1762108247510,-233.51889341,0.00023703,2]
[392887906,1762108247522,-190.422901,0.00023741,3]
[392887907,1762108247531,-720.0,0.00023758,20]
[392887908,1762108247540,-190.422901,0.00023818,2]
[392887909,1762108247549,-150.27,0.00023902,2]
[392887910,1762108247558,-360.0,0.00023906,2]
[392887911,1762108247567,-168.0,0.00023929,2]
[392887912,1762108247578,-151.0,0.00024,6]
[392887914,1762108247587,-479.78909422,0.00024033,2]
[392887915,1762108247598,-1917.23722051,0.00024033,2]
[392887916,1762108247607,-779.4478846,0.00024033,2]
[392887917,1762108247616,-3114.67374685,0.00024033,2]
[392887918,1762108247627,-532.22753452,0.00024033,2]
[392887919,1762108247636,-2128.91013807,0.00024033,2]
[392887920,1762108247646,-4785.25776284,0.00024033,2]
[392887921,1762108247655,-242.15909246,0.00024251,2]
[392887922,1762108247665,-151.0,0.000244,5]
[392887923,1762108247675,-460.0,0.00024454,2]
[392887924,1762108247684,-190.422901,0.00024482,3]
[392887925,1762108247694,-190.422901,0.00024551,10]
[392887926,1762108247704,-190.422901,0.00024602,2]
[392887927,1762108247713,-837.97199363,0.00024652,3]
[392887928,1762108247722,-191.24671159,0.00024768,2]
[392887929,1762108247731,-500.0,0.00024768,2]
[392887930,1762108247741,-500.0,0.00024768,2]
[392887931,1762108247751,-1939.86129101,0.00024796,2]
[392887932,1762108247760,-251.11897888,0.00024799,2]
[392887933,1762108247769,-153.664663,0.000248,7]
[392887934,1762108247778,-151.0,0.000248,2]
[392887935,1762108247787,-8002.1482294,0.000248,2]
[392887936,1762108247796,-151.0,0.000248,7]
[392887937,1762108247806,-151.0,0.000248,7]
[392887938,1762108247816,-587.0,0.00024809,2]
[392887939,1762108247825,-500.0,0.00024823,2]
[392887940,1762108247835,-500.0,0.00024823,2]
[392887941,1762108247844,-500.0,0.00024878,2]
[392887942,1762108247854,-500.0,0.00024878,2]
[392887943,1762108247863,-151.0,0.000249,7]
[392887944,1762108247872,-151.0,0.000249,7]
[392887945,1762108247882,-12612.35553025,0.000249,2]
[392887948,1762108248727,-768.28,0.000249,2]
[392887974,1762108260767,-8178.39456159,0.0002099,2]
[392887975,1762108260880,-3728.73149859,0.0002099,2]
[392887976,1762108260903,-2542.54700282,0.0002099,2]
[392887979,1762108262559,300.0,0.00020989,2]
[392888047,1762108299626,500.0,0.00020968,2]
[392888051,1762108300780,500.0,0.00020968,2]
[392888052,1762108301111,500.0,0.00020968,2]
[392888053,1762108301158,500.0,0.00020968,2]
[392888056,1762108302403,426.77180729,0.00020968,2]
[392888057,1762108302429,500.0,0.00020968,2]
[392888058,1762108302477,500.0,0.00020968,2]
[392888059,1762108302507,500.0,0.00020968,2]
[392888060,1762108302541,367.94291878,0.00020968,2]
[392888065,1762108304888,500.0,0.00020968,2]
[392888066,1762108304930,500.0,0.00020968,2]
[392888067,1762108304958,500.0,0.00020968,2]
[392888068,1762108304987,500.0,0.00020968,2]
[392888069,1762108305017,500.0,0.00020968,2]
[392888070,1762108305044,500.0,0.00020968,2]
[392888114,1762108326877,2705.29527393,0.00020876,2]
[392888115,1762108326901,10000.01,0.00020876,2]
[392888116,1762108326923,10000.01,0.00020876,2]
[392888117,1762108326947,10000.01,0.00020876,2]
[392888118,1762108326974,10000.01,0.00020876,2]
[392888119,1762108326996,10000.01,0.00020876,2]
[392888120,1762108327019,10000.01,0.00020876,2]
[392888121,1762108327041,10000.01,0.00020876,2]
[392888122,1762108327063,10000.01,0.00020876,2]
[392888123,1762108327085,10000.01,0.00020876,2]
[392888147,1762108341071,458.27,0.00020866,10]
[392888162,1762108351461,381.89,0.00020866,10]
[392888172,1762108356507,205.64596508,0.00020875,2]
[392888175,1762108357310,443.17554136,0.00020875,2]
[392888176,1762108357338,500.0,0.00020875,2]
[392888177,1762108357371,500.0,0.00020875,2]
[392888178,1762108357454,467.14741993,0.00020875,2]
[392888179,1762108357516,613.14973303,0.00020875,2]
[392888188,1762108361837,318.24,0.00020866,10]
[392888189,1762108362573,1200.0,0.00020875,2]
[392888209,1762108373310,265.2,0.00020866,10]
[392888223,1762108382266,300.0,0.00020875,2]
[392888230,1762108384330,221.0,0.00020866,10]
[392888248,1762108394740,184.17,0.00020866,10]
[392888263,1762108402691,3714.91986674,0.00020776,2]
[392888270,1762108405840,153.47,0.00020866,10]
[392888289,1762108416238,532.00147386,0.00020866,10]
[392888290,1762108416262,235.39852614,0.00020866,10]
[392888331,1762108442855,300.0,0.00020875,2]
[392888356,1762108461630,-8706.34147386,0.00020876,2]
[392888362,1762108464510,-10000.01,0.00020876,2]
[392888363,1762108464622,-10000.01,0.00020876,2]
[392888373,1762108473694,-645.88,0.00020866,10]
[392888378,1762108476266,500.0,0.00020875,2]
[392888379,1762108476319,516.64486529,0.00020875,2]
[392888381,1762108476402,500.0,0.00020875,2]
[392888382,1762108476505,500.0,0.00020875,2]
[392888383,1762108476553,227.75913759,0.00020875,2]
[392888384,1762108476769,500.0,0.00020875,2]
[392888385,1762108476819,617.08808309,0.00020875,2]
[392888394,1762108486282,500.0,0.00020875,2]
[392888395,1762108486336,500.0,0.00020875,2]
[392888396,1762108486393,491.98616846,0.00020875,2]
[392888403,1762108490182,3854.77174557,0.00020876,2]
[392888404,1762108490203,1145.20734267,0.00020876,2]
[392888409,1762108495874,2569.52272364,0.00019891,2]
[392888417,1762108501224,300.0,0.00020875,2]
[392888419,1762108501851,300.0,0.00020875,2]
[392888420,1762108501939,300.0,0.00020875,2]
[392888421,1762108501991,300.0,0.00020875,2]
[392888427,1762108507591,300.0,0.00020875,2]
[392888432,1762108510614,1200.0,0.00020875,2]
[392888495,1762108562182,300.0,0.00020875,2]
[392888558,1762108622533,300.0,0.00020875,2]
[392888590,1762108658489,1829.94750014,0.00020834,2]
[392888592,1762108662885,1200.0,0.00020875,2]
[392888598,1762108665007,6370.06249986,0.00020834,2]
[392888599,1762108665032,1675.18784326,0.00020834,2]
[392888613,1762108679923,202.55,0.00016244,2]
[392888614,1762108680195,202.55,0.00016244,2]
[392888616,1762108682952,300.0,0.00020875,2]
[392888625,1762108688105,164.21961969,0.00020834,2]
[392888674,1762108742318,300.0,0.00020875,2]
[392888718,1762108794847,1436.062951,0.00020655,2]
[392888727,1762108801386,300.0,0.00020875,2]
[392888728,1762108801947,300.0,0.00020875,2]
[392888729,1762108802239,300.0,0.00020875,2]
[392888730,1762108802313,300.0,0.00020875,2]
[392888737,1762108807479,300.0,0.00020875,2]
[392888738,1762108808363,151.0,0.00020863,2]
[392888739,1762108808960,151.0,0.00020863,2]
[392888740,1762108809606,151.0,0.00020863,2]
[392888742,1762108810216,151.0,0.00020863,2]
[392888743,1762108810624,1200.0,0.00020875,2]
[392888755,1762108822681,194.72792766,0.00020863,2]
[392888781,1762108844411,2220.71165839,0.000208,2]
[392888782,1762108844435,5155.9704699,0.000208,2]
[392888806,1762108862287,300.0,0.00020875,2]
[392888852,1762108903457,164.869,0.00020458,2]
[392888876,1762108922534,300.0,0.00020875,2]
[392888899,1762108939005,1601.20406264,0.000208,2]
[392888933,1762108982330,300.0,0.00020875,2]
[392888989,1762109039652,2177.96646746,0.00019891,2]
[392888990,1762109039673,2822.03353254,0.00019891,2]
[392888993,1762109042250,300.0,0.00020875,2]
[392889049,1762109103152,5000.0,0.00027397,120]
[392889260,1762109262590,1039.0,0.00020787,2]
[392889285,1762109282213,300.0,0.00020787,2]
[392889331,1762109432593,-5479.61631719,0.000208,2]
[392889344,1762109432698,-930.76478215,0.000208,2]
[392889346,1762109432707,-305.45605922,0.00020826,2]
[392889348,1762109432716,-194.72792766,0.00020863,2]
[392889350,1762109432725,-160.0,0.00020867,2]
[392889352,1762109432733,-300.0,0.00020873,2]
[392889354,1762109432743,-1200.0,0.00020873,2]
[392889356,1762109432752,-300.0,0.00020874,2]
[392889358,1762109432761,-300.0,0.00020874,2]
[392889360,1762109432770,-300.0,0.00020874,2]
[392889361,1762109432779,-245445.8972617,0.00020876,2]
[392889364,1762109432791,-12477.24420642,0.00020876,2]
[392889508,1762109438564,-2433.30688775,0.00020876,2]
[392889510,1762109438575,-76201.51853297,0.00020876,2]
[392889573,1762109441002,-29817.5,0.00020876,2]
[392889575,1762109441013,-22885.99734468,0.00020876,2]
[392889616,1762109446780,-13542.96026655,0.00020876,2]
[392889627,1762109451584,345.82493358,0.00020875,2]
[392889628,1762109451629,500.0,0.00020875,2]
[392889629,1762109451656,500.0,0.00020875,2]
[392889630,1762109463097,300.0,0.00020875,2]
[392889632,1762109466934,241.1,0.00020866,3]
[392889633,1762109471542,205.95598222,0.00020688,2]
[392889634,1762109477678,200.92,0.00020866,3]
[392889635,1762109488314,602.79,0.00020866,3]
[392889636,1762109489869,220.06714615,0.00020875,2]
[392889637,1762109509236,196.95,0.00019885,2]
[392889638,1762109514150,500.0,0.00020875,2]
[392889639,1762109514178,500.0,0.00020875,2]
[392889640,1762109514207,500.33997138,0.00020875,2]
[392889641,1762109514244,500.0,0.00020875,2]
[392889642,1762109514272,500.0,0.00020875,2]
[392889643,1762109514300,156.75534788,0.00020875,2]
[392889644,1762109514505,500.0,0.00020875,2]
[392889645,1762109514534,500.0,0.00020875,2]
[392889646,1762109515305,1401.05355481,0.00020776,2]
[392889647,1762109515471,500.0,0.00020875,2]
[392889648,1762109515502,499.99999999,0.00020875,2]
[392889649,1762109515628,500.0,0.00020875,2]
[392889650,1762109515955,128.25306399,0.00020875,2]
[392889651,1762109523828,-7478.95224506,0.00020044,2]
[392889652,1762109527040,-4809.93741056,0.00020044,2]
[392889653,1762109527064,-380.13517888,0.00020044,2]
[392889945,1762109611532,160.0,0.00020665,2]
[392889948,1762109722428,4258.93466522,0.00020665,2]
[392889953,1762109795572,2304.85663585,0.00020676,2]
[392890033,1762109895568,5490.86095659,0.00020676,2]
[392890034,1762109924826,980.5000246,0.00032876,120]
[392890035,1762109972119,1032.68290566,0.00020763,2]
[392890047,1762110003970,194.416715,0.00019775,2]
[392890051,1762110022276,194.72792766,0.00020763,2]
[392890055,1762110082900,401.84,0.00020766,3]
[392890058,1762110103495,162.132,0.0002036,2]
[392890064,1762110155735,3660.57397106,0.00020676,2]
[392890065,1762110176057,1113.25961601,0.0002073,2]
[392890066,1762110182521,300.0,0.00020771,2]
[392890067,1762110301182,300.0,0.00020771,2]
[392890068,1762110302009,300.0,0.00020771,2]
[392890069,1762110302560,300.0,0.00020771,2]
[392890070,1762110302956,300.0,0.00020771,2]
[392890074,1762110310356,1200.0,0.00020771,2]
[392890076,1762110313579,194.72792766,0.00020763,2]
[392890083,1762110355291,905.48747259,0.00032,120]
[392890086,1762110415974,2440.38264738,0.00020676,2]
[392890088,1762110422486,300.0,0.00020771,2]
[392890089,1762110426102,5864.89942496,0.00019801,2]
[392890090,1762110426123,10000.01,0.00019801,2]
[392890091,1762110426146,10000.01,0.00019801,2]
[392890093,1762110427910,-287.20541969,0.00019801,2]
[392890095,1762110429958,-433.60735274,0.00019801,2]
[392890096,1762110433433,-332.03165665,0.00019801,2]
[392890097,1762110437041,-183.02800299,0.00019801,2]
[392890098,1762110437333,-9525.74460695,0.00019801,2]
[392890099,1762110437457,-10000.01,0.00019801,2]
[392890100,1762110438654,-449.60854871,0.00019801,2]
[392890101,1762110440867,-184.55838011,0.00019801,2]
[392890102,1762110440967,-1974.6048203,0.00019801,2]
[392890103,1762110484576,283.55,0.00016244,7]
[392890105,1762110490727,699.988643,0.00013699,2]
[392890107,1762110578770,-487.23516611,0.00019773,2]
[392890108,1762110583247,-297.36096922,0.00019773,2]
[392890109,1762110585408,-180.43184543,0.00019773,2]
[392890110,1762110588980,-179.46144458,0.00019773,2]
[392890111,1762110591206,-181.54533025,0.00019773,2]
[392890112,1762110597776,-358.60823779,0.00019773,2]
[392890114,1762110622888,-310.15078932,0.00019773,2]
[392890115,1762110624521,-307.12045057,0.00019773,2]
[392890116,1762110630047,-165.02577896,0.00019575,2]
[392890124,1762110631553,-381.98308222,0.00019575,2]
[392890144,1762110631765,-4050.2470324,0.00019575,2]
[392890146,1762110631775,-5199.96682613,0.00019773,2]
[392890148,1762110631785,-699.988643,0.00020187,2]
[392890149,1762110631794,-323.68947268,0.00020479,2]
[392890151,1762110631803,-194.72792766,0.00020763,2]
[392890153,1762110631813,-1200.0,0.00020769,2]
[392890155,1762110631822,-500.0,0.00020769,2]
[392890157,1762110631832,-232.41514881,0.00020769,2]
[392890159,1762110631842,-500.0,0.00020769,2]
[392890161,1762110631852,-500.0,0.00020769,2]
[392890163,1762110631861,-435.53997581,0.00020769,2]
[392890165,1762110631870,-500.0,0.00020769,2]
[392890167,1762110631880,-500.0,0.00020769,2]
[392890168,1762110631890,-500.0,0.00020769,2]
[392890170,1762110631899,-500.0,0.00020769,2]
[392890172,1762110631913,-300.0,0.0002077,2]
[392890174,1762110631922,-300.0,0.0002077,2]
[392890176,1762110631931,-300.0,0.0002077,2]
[392890178,1762110631940,-300.0,0.0002077,2]
[392890180,1762110631950,-1200.0,0.00020771,2]
[392890182,1762110631959,-305.0,0.00020772,2]
[392890183,1762110631969,-3510.63254708,0.00020772,2]
[392890185,1762110631978,-285.32214298,0.00020775,2]
[392890187,1762110631988,-60169.54284891,0.00020776,2]
[392890191,1762110632016,-395.32331668,0.00020769,2]
[392890193,1762110632025,-500.0,0.00020769,2]
[392890195,1762110632034,-478.76574044,0.00020769,2]
[392890197,1762110632043,-500.0,0.00020769,2]
[392890199,1762110632052,-3496.54587968,0.00020776,2]
[392890319,1762110637668,-500.0,0.00020769,2]
[392890321,1762110637678,-334.08460088,0.00020769,2]
[392890323,1762110637687,-364.59751264,0.00020769,2]
[392890325,1762110637698,-135.40248736,0.00020769,2]
[392890327,1762110637708,-500.0,0.00020769,2]
[392890329,1762110637718,-3.81620286,0.00020776,2]
[392890330,1762110637729,-8335.55794086,0.00020776,2]
[392890333,1762110637739,-3038.15351425,0.00020776,2]
[392890408,1762110640132,-3e-08,0.00020776,2]
[392891176,1762110754595,177.31,0.0003,120]
[392891177,1762110755287,-222.63350263,0.0001979,2]
[392891178,1762110772907,-223.05811855,0.0001979,2]
[392891180,1762110804626,-116.72330647,0.0001979,2]
[392891181,1762110804646,-168.73816398,0.00019791,2]
[392891187,1762110826989,1000.0,0.00019774,2]
[392891188,1762110833541,5000.0,0.00019791,2]
[392891190,1762110847878,-88.56108247,0.00019791,2]
[392891191,1762110847898,-72.04746624,0.00019791,2]
[392891192,1762110849481,-254.10746359,0.00019791,2]
[392891193,1762110862894,-176.96052922,0.00019593,2]
[392891194,1762110868210,-168.932037,0.00019593,2]
[392891195,1762110870356,-449.32869241,0.00019593,2]
[392891196,1762110873054,-353.4064815,0.00019593,2]
[392891197,1762110874773,-186.16196161,0.00019593,2]
[392891198,1762110876290,-301.82713422,0.00019593,2]
[392891200,1762110880930,-301.66204723,0.00019593,2]
[392891201,1762110885322,-508.90833633,0.00019593,2]
[392891202,1762110886951,-218.58369576,0.00019593,2]
[392891203,1762110888474,-510.5658075,0.00019593,2]
[392891205,1762110942742,-134.70831928,0.00019593,2]
[392891206,1762110942767,-49.10546872,0.00019692,2]
[392891207,1762110945330,-278.18628464,0.00019692,2]
[392891208,1762110948067,-7.76306983,0.00019692,2]
[392891209,1762110948088,-13.89156981,0.00019791,2]
[392891210,1762110948111,-192.36496247,0.00019889,2]
[392891211,1762110950897,-107.63503753,0.00019889,2]
[392891212,1762110950919,-91.2579384,0.00019889,2]
[392891213,1762110952490,-170.93887101,0.00019889,2]
[392891214,1762110954258,-37.80319059,0.00019889,2]
[392891215,1762110954281,-150.47719092,0.00019889,2]
[392891216,1762110957203,-290.28872998,0.00019889,2]
[392891217,1762110958746,-205.69914519,0.00019889,2]
[392891218,1762110960886,-195.41124732,0.00019889,2]
[392891219,1762110962279,2830.44415656,0.00019889,2]
[392891220,1762110962402,-358.12368659,0.00019889,2]
[392891221,1762110962429,-171.66380936,0.0001989,2]
[392891222,1762110969623,-300.0,0.00019889,2]
[392891223,1762110969646,-31.76734052,0.0001989,2]
[392891224,1762110983492,-296.56885012,0.0001989,2]
[392891225,1762110983517,-3.43114988,0.0001989,2]
[392891226,1762110984933,-250.95687087,0.0001989,2]
[392891227,1762110987750,-245.61197925,0.0001989,2]
[392891228,1762110987773,-100.18449173,0.0001989,2]
[392891229,1762110990593,-343.2415027,0.0001989,2]
[392891230,1762110993686,-300.0,0.0001989,2]
[392891231,1762110993708,-22.37273088,0.0001989,2]
[392891232,1762110994329,169.10314,9.77e-05,2]
[392891233,1762110996098,-277.62726912,0.0001989,2]
[392891234,1762110996122,-222.37273088,0.0001989,2]
[392891235,1762111003634,-77.62726912,0.0001989,2]
[392891236,1762111020078,-325.7583961,0.00019891,2]
[392891237,1762111020186,-651.5167922,0.00019891,2]
[392891238,1762111020218,-8371.2180195,0.00019891,2]
[392891239,1762111020327,-325.7583961,0.00019891,2]
[392891240,1762111027014,5000.0,0.00019891,2]
[392891241,1762111028158,-180.90705981,0.00019891,2]
[392891242,1762111030245,-172.85073796,0.00019891,2]
[392891243,1762111032381,-154.2012723,0.00019891,2]
[392891245,1762111034610,999.0,0.00019774,2]
[392891247,1762111035070,3349.4932078,0.00019891,2]
[392891248,1762111035092,1650.5067922,0.00019891,2]
[392891249,1762111035120,-269.39634705,0.00019891,2]
[392891250,1762111036639,-345.18422715,0.00019891,2]
[392891251,1762111036660,-52.86758478,0.000199,2]
[392891252,1762111050038,507.95907007,0.00019891,2]
[392891253,1762111057795,667.44815898,0.000199,2]
[392891256,1762111193432,-124.09294444,0.000199,2]
[392891257,1762111193453,-32.72063811,0.0002013,2]
[392891260,1762111207796,-295.63308862,0.0002013,2]
[392891261,1762111207818,-4.36691138,0.0002036,2]
[392891262,1762111209938,-157.76508862,0.0002036,2]
[392891263,1762111209960,-42.23491138,0.00020362,2]
[392891264,1762111211361,-265.11923025,0.00020362,2]
[392891265,1762111217630,921.9328128,0.0002013,2]
[392891266,1762111228324,477.27090035,0.0002026,4]
[392891267,1762111237983,-308.83024389,0.00020362,2]
[392891268,1762111240328,-218.31978488,0.00020362,2]
[392891269,1762111246958,527.15002877,0.00020362,2]
[392891272,1762111420329,1163.911737,0.00019674,2]
[392891288,1762111624941,307.76375139,0.00020336,2]
[392891289,1762111627150,1229.82395054,0.00020336,2]
[392891291,1762111661630,1200.0,0.00020661,2]
[392891292,1762111684327,5000.0,0.00020662,2]
[392891294,1762111728547,1098.51056107,0.00019674,2]
[392891295,1762111728570,10000.01,0.00019674,2]
[392891296,1762111728595,10000.01,0.00019674,2]
[392891297,1762111728618,2238.84155973,0.00019674,2]
[392891298,1762111732016,373.95508782,0.00020336,2]
[392891299,1762111733640,1495.82035127,0.00020336,2]
[392891300,1762111735245,3365.59579036,0.00020336,2]
[392891301,1762111736872,2525.79721082,0.00020336,2]
[392891302,1762111736896,3451.50091286,0.00020336,2]
[392891303,1762111754865,1182.13467235,0.00020141,2]
[392891304,1762111755185,1182.13467236,0.00020421,2]
[392891311,1762111798870,2857.6172272,0.00020573,2]
[392891331,1762111832066,-302.0,0.00020662,2]
[392891333,1762111832076,-327.43847914,0.00020662,2]
[392891335,1762111832085,-151.0,0.00020663,2]
[392891337,1762111832095,-151.0,0.00020663,2]
[392891339,1762111832104,-151.0,0.00020663,2]